bitfinex-derivatives/quotes_ETHF0:USTF0_20250518
["timestamp","ask_amount","ask_price","bid_price","bid_amount"]
[1747589891110,0.79194,2524.6,2524.2,4.11874105]
[1747589891317,3.2078,2524.6,2524.2,9.26954105]
[1747589891508,0.79206,2524.2,2524.1,39.9]
[1747589891912,10.5852,2524.2,2522.9,3.2078]
[1747589892109,0.79246,2523.0,2522.7,19.02]
[1747589892309,3.2078,2523.1,2522.7,19.02]
[1747589892310,4.00022,2523.1,2522.7,19.02]
[1747589892518,3.2078,2523.1,2522.8,5.1508]
[1747589892708,0.79231,2523.5,2523.0,3.2078]
[1747589892910,8.793,2523.7,2523.1,19.023]
[1747589892911,9.58524,2523.7,2523.1,19.023]
[1747589893111,3.2078,2523.7,2523.1,40.33772333]
[1747589893315,5.3725,2524.7,2523.6,3.2078]
[1747589893614,5.3725,2524.7,2523.7,68.7277213]
[1747589893816,8.1024,2525.7,2523.7,68.7277213]
[1747589893817,3.2078,2525.4,2523.8,3.2078]
[1747589894012,3.2078,2525.4,2524.7,3.2078]
[1747589894213,3.2078,2525.8,2524.8,24.3216]
[1747589894413,5.3725,2525.6,2524.9,39.906]
[1747589894614,5.4516891,2525.6,2524.9,39.906]
[1747589894820,5.4516891,2525.6,2525.0,0.7918]
[1747589895022,5.4516891,2525.6,2525.1,9.29818]
[1747589895316,0.0791891,2525.6,2525.2,5.2986]
[1747589895515,3.2078,2525.8,2525.4,3.2078]
[1747589895714,0.7915,2526.0,2525.5,5.2986]
[1747589895916,3.99928,2526.1,2525.6,19.025]
[1747589896117,3.2078,2526.1,2525.7,5.5424]
[1747589896309,3.2078,2526.8,2525.7,5.5424]
[1747589896515,0.07915462,2526.7,2526.6,0.79131]
[1747589896815,1e-08,2526.7,2526.6,80.47689353]
[1747589897117,5.0657,2527.6,2526.6,52.34880639]
[1747589897319,0.07912957,2527.5,2526.7,24.5674]
[1747589897515,0.07912957,2527.5,2527.1,0.79113]
[1747589897818,0.07912957,2527.5,2527.2,5.5424]
[1747589898121,0.07912957,2527.5,2527.3,3.2078]
[1747589898321,0.07912957,2527.5,2527.4,6.33346]
[1747589898522,1e-08,2527.5,2527.4,10.75105668]
[1747589898721,3.2078,2528.2,2527.4,14.95999668]
[1747589899023,3.99863,2528.2,2527.7,0.79096]
[1747589899218,5.0657,2528.3,2527.4,4.41759668]
[1747589899219,3.2078,2527.8,2527.4,4.41759668]
[1747589899418,3.2078,2527.7,2526.6,0.79128]
[1747589899621,3.2078,2527.6,2526.7,3.2078]
[1747589899822,5.3007,2527.5,2526.8,5.5223]
[1747589900227,0.79112,2527.2,2526.8,13.06270617]
[1747589900524,5.3007,2527.5,2526.8,12.27145617]
[1747589900728,3.2078,2527.6,2526.8,12.27145617]
[1747589901024,0.79118,2527.0,2526.9,23.18745866]
[1747589901224,0.79118,2527.0,2526.9,19.021]
[1747589901724,6.09188,2527.0,2526.9,19.021]
[1747589902117,10.3007,2527.0,2526.0,3.2078]
[1747589902318,0.79143,2526.2,2526.1,19.019]
[1747589902824,3.2078,2527.2,2526.5,0.79133]
[1747589903126,0.7912,2527.0,2526.6,6.15929]
[1747589903326,3.2078,2527.2,2526.6,5.368]
[1747589903529,0.79134,2526.5,2526.4,3.2078]
[1747589903927,8.7493,2526.9,2526.3,19.018]
[1747589903928,3.2078,2526.6,2526.3,19.018]
[1747589904128,0.79146,2526.1,2526.0,39.898]
[1747589904727,5.5415,2526.4,2526.0,39.898]
[1747589904919,0.79147,2526.1,2526.0,39.898]
[1747589905429,5.5415,2526.4,2526.2,0.79143]
[1747589905624,5.5415,2526.4,2526.1,5.4297]
[1747589906022,3.2078,2526.7,2526.1,8.97105617]
[1747589906221,5.4401,2526.6,2526.4,0.79136]
[1747589906422,0.79136,2526.5,2526.1,8.97105617]
[1747589906626,6.23141,2526.6,2526.3,0.7914]
[1747589906821,0.79134,2526.5,2526.4,5.4297]
[1747589907022,5.4401,2526.6,2526.0,39.898]
[1747589907326,3.2078,2526.7,2526.5,0.79134]
[1747589907528,3.2078,2526.7,2526.6,0.79131]
[1747589907729,3.2078,2526.7,2526.1,13.0923174]
[1747589907921,3.2078,2526.7,2526.5,0.79132]
[1747589908117,3.99908,2526.7,2526.6,19.018]
[1747589908318,0.79139,2526.4,2526.1,0.79144]
[1747589908522,3.2078,2526.7,2526.6,0.79131]
[1747589908723,5.5436,2527.0,2526.2,4.35146158]
[1747589908925,0.79127,2526.8,2526.3,19.018]
[1747589909126,6.33483,2526.9,2526.4,5.5581]
[1747589909426,0.79125,2526.8,2526.6,0.79129]
[1747589909728,0.79125,2526.8,2526.7,5.5581]
[1747589909933,5.5436,2526.9,2526.7,5.5581]
[1747589910227,5.5436,2526.9,2526.3,19.018]
[1747589910428,6.33484,2526.9,2526.4,5.5581]
[1747589910623,0.79125,2526.8,2526.4,5.5581]
[1747589910933,0.79125,2526.8,2526.4,9.09945617]
[1747589911129,5.5436,2526.9,2526.4,9.09945617]
[1747589911335,3.2078,2527.0,2526.4,9.09945617]
[1747589911534,3.2078,2527.0,2526.9,0.79122]
[1747589911730,3.2078,2527.0,2526.9,19.018]
[1747589911937,3.2078,2527.0,2526.9,23.35056617]
[1747589912342,1.13379283,2527.2,2527.1,0.79115]
[1747589912837,1.13379283,2527.2,2527.1,7.54030617]
[1747589913138,0.7908,2528.3,2527.3,1.97771]
[1747589913338,8.3705,2528.4,2527.5,1.97756]
[1747589913633,3.2078,2528.4,2528.3,0.79077]
[1747589913843,3.2078,2528.4,2528.3,19.016]
[1747589914030,3.99854,2528.4,2528.3,19.53983759]
[1747589914231,3.2078,2528.4,2528.3,20.33061759]
[1747589914626,0.73473679,2529.2,2529.1,0.79053]
[1747589914828,0.73473679,2529.2,2529.1,22.45033]
[1747589915036,0.73473679,2529.2,2529.1,3.99833]
[1747589915244,1.57457426,2529.5,2529.4,0.79043]
[1747589915442,3.80309685,2529.9,2529.6,0.79034]
[1747589915645,4.32693444,2529.9,2529.7,5.1727]
[1747589915847,4.32693444,2529.9,2529.8,18.452]
[1747589916145,4.32693444,2529.9,2529.8,18.446]
[1747589916343,0.79031,2529.8,2529.7,3.2078]
[1747589916539,5.3574,2529.8,2529.3,8.3805]
[1747589916740,0.7904,2529.5,2529.4,18.446]
[1747589916938,0.79043,2529.4,2529.3,18.446]
[1747589917137,6.14783,2529.4,2529.3,18.446]
[1747589917353,6.67166759,2529.4,2529.3,18.446]
[1747589917648,5.88123759,2529.4,2528.9,43.0988]
[1747589917946,5.88123759,2529.4,2529.0,18.446]
[1747589918246,0.7905,2529.2,2529.0,23.8887]
[1747589918444,0.52383759,2529.4,2529.1,0.79051]
[1747589918644,0.79046,2529.3,2529.2,5.4427]
[1747589919151,0.79056,2529.0,2528.9,43.0988]
[1747589919350,5.476,2529.2,2528.9,61.5418]
[1747589919547,0.79056,2529.0,2528.9,3.2078]
[1747589919756,0.79071,2528.5,2528.4,18.443]
[1747589920541,8.99851,2528.5,2528.4,18.443]
[1747589920755,8.2078,2528.5,2527.9,48.3576]
[1747589920949,0.79087,2528.0,2527.9,39.872]
[1747589921146,0.79087,2528.0,2527.9,58.315]
[1747589921855,5.4014,2528.4,2527.9,58.315]
[1747589922049,0.79087,2528.0,2527.9,58.315]
[1747589923347,0.79087,2528.0,2527.9,39.872]
[1747589923553,0.79087,2528.0,2527.9,58.315]
[1747589923755,5.97957,2528.0,2527.9,58.315]
[1747589924655,5.1887,2528.0,2527.9,58.315]
[1747589924960,3.99866,2528.1,2527.9,59.1059]
[1747589925255,0.79087,2528.0,2527.9,58.315]
[1747589925457,5.97957,2528.0,2527.9,58.315]
[1747589925851,5.1887,2528.0,2527.7,17.817]
[1747589926051,0.79092,2527.9,2527.7,17.817]
[1747589926256,0.79093,2527.8,2527.7,17.817]
[1747589927054,5.97958,2528.0,2527.7,17.817]
[1747589927249,0.7909,2527.9,2527.8,6.06571]
[1747589927459,5.1887,2528.0,2527.8,5.2748]
[1747589927657,3.2078,2528.1,2527.8,5.2748]
[1747589927855,1.97653,2528.9,2527.8,5.2748]
[1747589927856,5.1768,2528.4,2528.3,0.79078]
[1747589928061,8.3846,2528.8,2528.3,3.2078]
[1747589928253,8.3846,2528.8,2528.4,6.06553]
[1747589928452,0.79074,2528.5,2528.4,17.817]
[1747589929462,8.3846,2528.8,2528.4,17.817]
[1747589929655,0.79068,2528.6,2528.4,18.60772]
[1747589929857,5.96744,2528.8,2528.5,8.6397]
[1747589930056,5.1768,2528.8,2528.5,5.4319]
[1747589930557,0.79066,2528.7,2528.5,6.22258]
[1747589930758,0.79068,2528.6,2528.5,6.22258]
[1747589930963,0.79068,2528.6,2528.5,5.4319]
[1747589931360,5.1768,2528.8,2528.2,3.2078]
[1747589931361,0.79078,2528.3,2528.2,3.2078]
[1747589931567,10.36121,2528.8,2528.2,23.2479]
[1747589931860,0.79076,2528.4,2528.2,18.6068]
[1747589932160,5.1768,2528.8,2528.3,3.99856]
[1747589932464,0.79074,2528.4,2528.3,5.4319]
[1747589932659,5.1768,2528.8,2528.3,5.4319]
[1747589932862,0.79074,2528.4,2528.3,5.4319]
[1747589933165,0.79073,2528.5,2528.3,6.22266]
[1747589933362,0.79073,2528.5,2528.3,5.4319]
[1747589933562,0.79074,2528.4,2528.3,6.22267]
[1747589934563,0.79074,2528.4,2528.3,5.4319]
[1747589935072,0.79074,2528.4,2528.3,6.22268]
[1747589936160,5.1768,2528.8,2528.3,5.4319]
[1747589936361,0.79074,2528.4,2528.3,5.4319]
[1747589936857,3.95476,2527.8,2526.4,3.2078]
[1747589937059,0.79146,2526.1,2526.0,3.09906665]
[1747589937259,0.79172,2525.3,2525.2,3.2078]
[1747589937559,0.79165,2525.5,2525.4,5.18511]
[1747589937770,3.2078,2525.7,2525.4,0.07919537]
[1747589938067,0.79165,2525.5,2525.4,0.07919537]
[1747589938456,5.2273,2525.6,2525.4,8.47210537]
[1747589938767,0.79174,2525.3,2525.1,17.266]
[1747589938958,0.79174,2525.3,2525.1,22.45111]
[1747589939154,0.79174,2525.2,2525.1,20.4738]
[1747589939359,0.79184,2524.9,2524.8,1.30435847]
[1747589939661,3.99964,2524.9,2524.8,1.30435847]
[1747589939854,3.99964,2524.9,2524.8,9.69726847]
[1747589940269,0.7919,2524.7,2524.6,17.266]
[1747589940565,3.2078,2524.9,2524.4,5.3828]
[1747589940566,0.79196,2524.5,2524.4,5.3828]
[1747589940760,3.2078,2524.6,2524.0,39.868]
[1747589940965,0.79207,2524.2,2524.1,8.39291]
[1747589941161,3.99987,2524.2,2524.1,3.2078]
[1747589941365,0.79209,2524.1,2524.0,39.868]
[1747589941564,3.2078,2524.2,2524.1,8.39291]
[1747589941763,3.2078,2524.2,2524.1,9.185]
[1747589941964,3.2078,2524.2,2524.1,13.59361]
[1747589942165,3.2078,2524.2,2523.5,17.272]
[1747589942373,3.2078,2524.2,2524.1,9.185]
[1747589942870,3.2078,2524.2,2524.1,8.39291]
[1747589943070,3.2078,2524.2,2524.1,9.185]
[1747589944065,8.4467,2524.6,2524.1,8.39291]
[1747589944265,0.79198,2524.5,2524.4,5.18511]
[1747589944465,3.2078,2524.6,2524.4,5.18511]
[1747589944667,0.79198,2524.5,2524.1,0.79208]
[1747589944966,3.2078,2524.6,2524.4,5.18511]
[1747589945268,3.2078,2524.6,2524.3,5.18511]
[1747589945462,5.6113,2524.5,2524.1,7.53137623]
[1747589945664,0.79221,2523.7,2522.8,3.2078]
[1747589945864,3.2078,2523.7,2523.4,3.2078]
[1747589946070,3.2078,2523.7,2523.5,5.18511]
[1747589946271,0.79231,2523.4,2523.0,19.23454952]
[1747589946471,8.8191,2523.6,2523.4,3.2078]
[1747589946670,3.2078,2523.6,2523.5,9.18518]
[1747589946871,5.6113,2524.2,2523.5,12.52263433]
[1747589947168,3.2078,2524.0,2523.8,5.18511]
[1747589947471,3.2078,2524.0,2523.9,0.79215]
[1747589947664,3.2078,2524.0,2523.9,5.97726]
[1747589947863,3.2078,2524.0,2523.9,9.18506]
[1747589948368,3.2078,2524.0,2523.9,18.75978033]
[1747589948671,3.2078,2524.0,2523.9,8.39291]
[1747589948878,3.99992,2524.0,2523.9,3.2078]
[1747589949071,3.2078,2524.0,2523.9,3.2078]
[1747589949573,3.2078,2524.0,2523.9,8.39291]
[1747589949772,3.2078,2524.0,2523.6,17.286]
[1747589949976,3.2078,2523.7,2523.6,5.97735]
[1747589950267,3.2078,2523.7,2523.6,0.79224]
[1747589950472,3.2078,2524.1,2523.6,13.39291]
[1747589950673,3.2078,2524.1,2524.0,5.97723]
[1747589950864,3.2078,2524.4,2524.3,0.79202]
[1747589951064,3.2078,2524.4,2524.3,18.07802]
[1747589951265,1.51002456,2525.1,2524.4,1.97993]
[1747589951466,5.5428,2525.0,2524.9,0.79181]
[1747589951669,5.5428,2525.0,2524.9,5.18511]
[1747589951968,6.3346,2525.0,2524.9,25.67891]
[1747589952272,5.5428,2525.0,2524.9,26.47075]
[1747589952581,5.5428,2525.0,2524.3,1.98]
[1747589952582,0.79183,2524.9,2524.3,17.288]
[1747589952877,5.5428,2524.8,2524.7,5.97701]
[1747589953068,3.2078,2525.0,2524.9,5.97694]
[1747589953567,5.5428,2525.2,2525.0,0.79178]
[1747589953762,6.33456,2525.2,2525.0,3.99958]
[1747589953966,5.5428,2525.2,2525.1,9.18468]
[1747589954268,2.26110808,2526.1,2525.8,0.79155]
[1747589954474,2.26110808,2526.1,2526.0,0.79149]
[1747589954673,4.4573825,2526.7,2526.0,8.39291]
[1747589954674,1.2495825,2526.7,2526.0,8.39291]
[1747589954873,1.2495825,2526.7,2526.4,5.18511]
[1747589955174,1.2495825,2526.7,2526.5,5.18511]
[1747589955376,1.2495825,2526.7,2526.4,5.18511]
[1747589955677,0.79133,2526.6,2526.3,17.287]
[1747589955974,3.01429797,2527.3,2526.9,3.2078]
[1747589956166,3.01429797,2527.3,2526.7,5.18511]
[1747589956780,0.18404384,2529.2,2527.9,3.2078]
[1747589956978,3.2078,2528.0,2526.4,3.2078]
[1747589957276,3.2078,2527.1,2526.5,1.0]
[1747589957463,3.2078,2527.1,2526.6,0.9]
[1747589957667,3.2078,2527.1,2526.0,3.2078]
[1747589957869,3.2078,2527.1,2526.2,4.3200453]
[1747589958177,3.2078,2527.1,2526.1,4.3200453]
[1747589958376,3.2078,2527.1,2525.0,17.245]
[1747589958377,3.2078,2527.1,2525.5,3.2078]
[1747589958680,3.2078,2526.5,2525.5,3.2078]
[1747589958876,3.2078,2526.5,2525.6,3.2078]
[1747589959068,0.79127,2526.7,2525.7,3.2078]
[1747589959371,0.79102,2527.5,2526.5,3.2078]
[1747589959569,3.2078,2527.6,2527.1,3.2078]
[1747589959774,3.7555,2528.7,2527.5,3.2078]
[1747589959775,3.2078,2528.3,2527.5,3.2078]
[1747589960275,17.46704384,2529.2,2527.5,3.2078]
[1747589960276,3.2078,2529.7,2528.2,3.2078]
[1747589960481,3.2078,2529.7,2528.9,3.2078]
[1747589960872,7.85568393,2530.2,2529.0,21.51255764]
[1747589961081,7.85568393,2530.2,2530.1,3.2078]
[1747589961387,11.14252906,2530.2,2529.0,12.476]
[1747589961567,0.79024,2530.1,2529.0,12.476]
[1747589961774,0.07905138,2530.0,2529.1,4.28230111]
[1747589962072,0.07905138,2530.0,2529.3,3.2078]
[1747589962267,0.07905138,2530.0,2529.4,8.6873]
[1747589962471,0.79023,2530.1,2529.4,8.6873]
[1747589962472,3.2078,2531.1,2529.9,3.2078]
[1747589962674,3.2078,2531.1,2529.4,5.4795]
[1747589962675,0.07902639,2530.8,2530.3,3.2078]
[1747589962868,0.07902639,2530.8,2530.0,5.4795]
[1747589963071,0.79008,2530.6,2530.0,5.4795]
[1747589963267,0.79011,2530.4,2529.6,3.2078]
[1747589963466,0.07904201,2530.3,2529.6,3.2078]
[1747589963672,0.07904201,2530.3,2529.7,10.12849911]
[1747589964079,0.07904201,2530.3,2530.2,3.2078]
[1747589964282,0.07904201,2530.3,2529.7,10.12849911]
[1747589964283,0.07904201,2530.3,2529.9,3.2078]
[1747589964474,0.07904201,2530.3,2530.0,5.5522]
[1747589964779,0.07904201,2530.3,2530.0,10.12849911]
[1747589964975,0.07904201,2530.3,2530.0,5.5522]
[1747589965180,0.07904201,2530.3,2529.9,3.2078]
[1747589965382,0.79024,2530.0,2529.9,3.2078]
[1747589965684,0.7903,2529.9,2529.6,3.2078]
[1747589965879,3.2078,2530.2,2529.1,3.2078]
[1747589966076,3.2078,2530.3,2529.2,3.2078]
[1747589966273,0.79027,2530.0,2529.2,7.38395211]
[1747589966470,3.2078,2530.3,2529.2,7.38395211]
[1747589966676,3.2078,2530.0,2529.1,5.3468]
[1747589966884,0.79041,2529.5,2529.1,5.3468]
[1747589967086,0.79031,2529.8,2529.4,3.2078]
[1747589967385,3.2078,2530.3,2529.2,0.79048]
[1747589967386,3.2078,2530.0,2529.2,4.13194725]
[1747589967580,3.2078,2530.0,2529.1,5.3468]
[1747589967881,0.79044,2529.4,2529.1,5.3468]
[1747589968076,0.79046,2529.3,2529.1,5.3468]
[1747589968580,1.97577,2529.8,2529.0,3.7887]
[1747589968779,0.79051,2529.2,2528.8,5.3468]
[1747589969081,3.2078,2529.7,2529.1,3.2078]
[1747589969385,0.79024,2530.0,2529.5,0.79038]
[1747589969584,0.79024,2530.0,2529.6,5.6078]
[1747589969784,3.2078,2530.1,2529.6,5.6078]
[1747589969979,0.7903,2529.9,2529.6,5.6078]
[1747589970180,0.79027,2529.9,2529.6,5.6078]
[1747589970381,3.2078,2530.1,2529.6,5.6078]
[1747589970677,0.79012,2530.4,2529.6,5.6078]
[1747589970885,0.79019,2530.2,2529.9,3.2078]
[1747589971077,0.79023,2530.1,2529.9,3.2078]
[1747589971279,5.3356,2530.3,2529.9,3.2078]
[1747589971484,5.3356,2530.3,2529.6,5.6078]
[1747589971679,0.79025,2530.0,2529.6,6.39815]
[1747589972485,5.3356,2530.3,2529.7,0.79032]
[1747589972687,5.3356,2530.3,2529.6,5.6078]
[1747589973182,5.3356,2530.3,2529.7,3.2078]
[1747589973483,3.2078,2530.6,2529.7,3.2078]
[1747589973785,5.5254,2530.2,2529.7,3.2078]
[1747589974093,3.2078,2530.6,2530.5,0.79008]
[1747589974278,0.78997,2530.9,2530.7,0.79]
[1747589974279,5.5254,2530.9,2530.7,0.79]
[1747589974591,3.2078,2531.5,2530.4,20.0088]
[1747589974592,0.78984,2531.3,2530.8,3.2078]
[1747589974980,5.5254,2531.4,2530.9,5.6019]
[1747589975187,3.2078,2531.5,2531.2,0.78985]
[1747589975488,3.2078,2531.5,2531.3,5.5197]
[1747589975785,3.2078,2531.5,2531.3,22.3207]
[1747589976086,16.779,2532.7,2531.4,24.4453441]
[1747589976291,0.78977,2531.5,2531.4,3.2078]
[1747589977288,5.4363,2531.8,2531.0,25.5235]
[1747589977587,0.7899,2531.1,2531.0,20.0038]
[1747589978288,6.97482,2531.1,2530.5,5.5197]
[1747589978488,5.2659,2531.0,2530.7,3.2078]
[1747589978683,0.78996,2530.9,2530.7,3.2078]
[1747589978891,0.7899,2531.1,2530.8,0.78997]
[1747589979078,0.7899,2531.1,2530.8,5.95327]
[1747589979291,5.2659,2531.4,2530.9,0.78995]
[1747589979490,0.7899,2531.1,2531.0,8.3711]
[1747589979676,0.7899,2531.1,2531.0,3.2078]
[1747589981889,0.79008,2530.5,2530.4,20.0018]
[1747589982292,0.79018,2530.2,2529.6,0.79036]
[1747589982487,1.97538,2530.3,2529.7,5.7074]
[1747589982685,5.18279,2530.8,2529.7,9.70552]
[1747589982686,0.79029,2529.9,2529.7,9.70552]
[1747589982992,1.9753,2530.4,2529.7,8.9152]
[1747589983187,0.79029,2529.9,2529.7,9.70553]
[1747589983388,5.245,2530.4,2529.7,5.7074]
[1747589983389,0.7903,2529.8,2529.7,5.7074]
[1747589983597,0.7904,2529.5,2529.4,3.2078]
[1747589983985,1.97623,2529.3,2528.5,3.2078]
[1747589984299,5.5977,2529.4,2528.5,3.2078]
[1747589984491,5.5977,2529.2,2528.5,3.2078]
[1747589984796,0.79057,2529.0,2528.7,0.79064]
[1747589984995,0.79059,2528.9,2528.8,0.07908889]
[1747589986693,5.79059,2528.9,2528.8,0.07908889]
[1747589986895,6.38829,2528.9,2528.8,0.07908889]
[1747589987290,5.5977,2528.9,2528.8,0.07908889]
[1747589987489,3.2078,2529.0,2528.8,0.07908889]
[1747589987692,8.537,2529.6,2528.9,0.79058]
[1747589987892,8.537,2529.6,2529.0,0.07908264]
[1747589988185,0.79052,2529.1,2529.0,0.07908264]
[1747589989188,8.537,2529.6,2529.0,0.07908264]
[1747589989400,0.79043,2529.4,2529.1,0.79052]
[1747589989599,0.099,2529.4,2529.3,0.79046]
[1747589989787,0.099,2529.5,2529.2,4.38349492]
[1747589990098,5.4282,2529.5,2529.0,0.07908264]
[1747589990591,0.79047,2529.3,2529.0,5.37298264]
[1747589990794,0.79048,2529.3,2529.1,0.7905]
[1747589991094,0.79052,2529.1,2529.0,0.07908264]
[1747589991984,5.79052,2529.1,2529.0,0.07908264]
[1747589992190,0.79052,2529.1,2529.0,0.07908264]
[1747589992390,5.79052,2529.1,2529.0,0.07908264]
[1747589992900,11.34582,2529.1,2529.0,0.07908264]
[1747589993488,6.34582,2529.1,2529.0,0.07908264]
[1747589994801,11.34582,2529.1,2529.0,2.64e-06]
[1747589995694,0.79099,2527.6,2527.5,3.2078]
[1747589995899,0.79099,2527.6,2527.5,0.07912957]
[1747589996698,0.79088,2528.0,2527.7,0.79095]
[1747589997097,5.3239,2528.3,2527.6,5.6851]
[1747589997293,1.11232412,2528.5,2528.1,3.2078]
[1747589997499,1.11232412,2528.5,2528.4,0.79074]
[1747589997696,1.11232412,2528.5,2528.2,26.82975032]
[1747589997901,1.11232412,2528.5,2528.4,0.79074]
[1747589998301,1.11232412,2528.5,2528.4,6.47584]
[1747589998503,1.11232412,2528.5,2528.4,5.6851]
[1747589998701,1.11232412,2528.5,2528.4,6.47584]
[1747589999098,0.7905,2529.2,2528.4,13.8929]
[1747589999306,3.2078,2527.5,2526.9,1.54804526]
[1747589999501,1.97807,2526.9,2525.4,3.2078]
[1747589999804,3.2078,2526.5,2525.7,17.356]
[1747590000003,0.79149,2526.0,2525.9,10.53797095]
[1747590000195,3.2078,2526.0,2525.7,17.356]
[1747590000396,3.2078,2526.5,2525.9,10.53797095]
[1747590000597,3.2078,2526.2,2526.1,0.79145]
[1747590001101,3.2078,2526.5,2526.1,15.53797095]
[1747590001303,3.2078,2526.5,2525.7,19.33497]
[1747590001304,3.2078,2526.5,2526.4,0.79137]
[1747590001607,3.2078,2526.5,2526.4,27.89497095]
[1747590002107,3.2078,2526.5,2526.4,28.68634095]
[1747590002299,3.2078,2526.5,2525.5,1.97912]
[1747590002503,3.2078,2526.6,2526.5,0.79134]
[1747590002705,3.2078,2526.6,2525.8,4.40235652]
[1747590002903,0.79148,2526.1,2526.0,6.4156]
[1747590003208,3.2078,2526.2,2526.1,0.79146]
[1747590003508,3.2078,2526.2,2526.1,11.32943095]
[1747590003703,3.2078,2526.5,2526.4,0.79135]
[1747590003903,3.2078,2526.5,2526.4,17.361]
[1747590004104,3.2078,2526.5,2526.4,28.69034095]
[1747590004706,3.2078,2526.5,2526.4,27.89897095]
[1747590004908,3.2078,2526.5,2526.4,28.69034095]
[1747590005207,3.2078,2526.5,2526.4,27.89897095]
[1747590005408,3.2078,2526.5,2526.4,21.48337095]
[1747590005608,3.2078,2526.5,2526.4,28.69034095]
[1747590006507,3.2078,2527.5,2526.5,1.97835]
[1747590006806,3.2078,2527.2,2527.0,4.91353095]
[1747590007004,3.2078,2527.5,2527.1,17.364]
[1747590007210,3.2078,2527.2,2527.0,4.12237095]
[1747590007401,0.79115,2527.1,2527.0,4.12237095]
[1747590007712,0.79119,2527.0,2526.6,5.7612]
[1747590007908,3.2078,2527.2,2527.1,4.91352095]
[1747590008099,3.2078,2527.4,2527.1,4.12237095]
[1747590008408,3.2078,2527.4,2527.2,9.88357095]
[1747590008608,3.2078,2527.4,2527.2,5.7612]
[1747590008813,3.2078,2527.4,2527.2,6.5523]
[1747590009104,3.2078,2527.4,2527.2,5.7612]
[1747590009306,3.2078,2528.2,2527.3,7.33017095]
[1747590009510,4.32012412,2528.5,2528.1,4.12237095]
[1747590009704,4.32012412,2528.5,2528.4,11.32871095]
[1747590010011,1.50421027,2528.8,2528.7,0.79065]
[1747590010209,1.50421027,2528.8,2528.7,10.53797095]
[1747590010411,1.50421027,2528.8,2528.7,11.32862095]
[1747590010607,2.22913592,2529.0,2528.7,15.53797095]
[1747590010913,2.22913592,2529.0,2528.9,11.32856095]
[1747590011102,2.22913592,2529.0,2528.9,28.14156095]
[1747590011298,2.22913592,2529.0,2528.9,10.53797095]
[1747590011504,2.22913592,2529.0,2528.9,28.14156095]
[1747590011705,10.43693592,2529.0,2528.2,0.79078]
[1747590011907,3.2078,2529.0,2528.5,6.4156]
[1747590012102,0.93668873,2529.1,2528.9,11.32854095]
[1747590012303,0.93668873,2529.1,2529.0,10.53797095]
[1747590012505,3.2078,2529.4,2529.0,67.21797095]
[1747590012710,3.2078,2529.4,2529.3,10.53797095]
[1747590012908,3.99813,2529.8,2529.4,0.79043]
[1747590013114,0.099,2529.5,2529.4,16.93850095]
[1747590013313,3.2078,2529.8,2529.4,16.93848095]
[1747590013619,8.70756453,2530.2,2529.8,0.79029]
[1747590013916,7.91736453,2530.2,2530.1,4.12237095]
[1747590014109,0.79018,2530.2,2530.1,4.12237095]
[1747590014410,0.79018,2530.2,2530.1,10.53797095]
[1747590014617,3.2078,2530.5,2530.1,10.53797095]
[1747590014808,0.79017,2530.3,2530.2,4.12237095]
[1747590015305,3.2078,2530.5,2530.2,4.12237095]
[1747590015505,0.79013,2530.4,2530.2,4.12237095]
[1747590015714,3.99789,2530.5,2530.4,4.12237095]
[1747590015908,3.2078,2530.5,2530.4,10.53797095]
[1747590016813,3.99789,2530.5,2530.4,6.4156]
[1747590017012,3.2078,2530.5,2530.4,10.53797095]
[1747590017214,3.99789,2530.5,2530.4,10.53797095]
[1747590017411,3.2078,2530.5,2530.4,10.53797095]
[1747590018214,3.2078,2530.5,2530.4,11.32809095]
[1747590018413,0.79004,2530.7,2530.4,11.32809095]
[1747590018717,3.891,2532.3,2530.6,4.12237095]
[1747590019027,5.20101064,2533.1,2530.6,4.12237095]
[1747590019028,7.35448253,2538.4,2532.2,3.2078]
[1747590019212,4.75889139,2536.9,2535.9,4.12237095]
[1747590019408,10.6010938,2536.9,2536.8,3.2078]
[1747590019611,3.8757,2538.5,2537.5,3.2078]
[1747590019913,4.75889139,2537.7,2537.6,7.20347]
[1747590020111,19.89531113,2537.8,2536.1,3.779]
[1747590020315,3.2078,2537.1,2536.2,3.2078]
[1747590020518,5.5125,2537.0,2536.2,3.2078]
[1747590020818,5.5125,2537.0,2536.7,4.12237095]
[1747590020819,10.27139139,2537.0,2536.7,4.12237095]
[1747590021017,4.75889139,2536.9,2536.5,6.4156]
[1747590021315,10.23119139,2537.4,2536.9,4.12237095]
[1747590021625,4.75889139,2537.0,2536.9,4.12237095]
[1747590021814,4.75889139,2537.0,2536.8,3.2078]
[1747590022015,10.23119139,2536.9,2536.8,3.2078]
[1747590022319,5.4723,2536.9,2535.9,3.2078]
[1747590022512,5.4723,2536.9,2536.1,6.4156]
[1747590022818,5.4723,2536.9,2536.3,4.12237095]
[1747590023219,5.4723,2536.9,2536.4,4.12237095]
[1747590023421,5.4723,2536.9,2536.2,3.2078]
[1747590024119,0.78816,2536.7,2536.2,3.2078]
[1747590024314,6.5854,2536.6,2536.2,3.2078]
[1747590024506,3.2078,2536.3,2535.6,3.2078]
[1747590024713,5.7972,2536.2,2535.6,3.2078]
[1747590025113,9.005,2536.2,2535.6,3.2078]
[1747590025308,3.2078,2535.7,2535.1,3.2078]
[1747590025521,5.7972,2535.6,2535.1,3.2078]
[1747590025717,0.78861,2535.3,2535.1,3.2078]
[1747590025908,5.7972,2535.2,2535.1,3.2078]
[1747590026519,6.58585,2535.2,2534.7,43.0608]
[1747590026717,5.7972,2535.2,2534.9,10.53797095]